fUST/lending_fUST_20251203
["ID","MTS","AMOUNT","RATE_DAILY","PERIOD"]
[395808540,1764726640405,-193.737523,0.00011356,2]
[395808542,1764726640415,-500.0,0.00011356,2]
[395808544,1764726640425,-657.03,0.00011356,2]
[395808546,1764726640435,-557.29885826,0.00011356,2]
[395808548,1764726640444,-502.43373398,0.00011356,2]
[395808550,1764726640453,-553.78652839,0.00011356,2]
[395808552,1764726640463,-169.867834,0.00011356,2]
[395808554,1764726640473,-971.38,0.00011356,2]
[395808556,1764726640482,-403.35968513,0.00011356,2]
[395808558,1764726640491,-500.0,0.00011356,2]
[395808560,1764726640501,-635.51,0.00011356,2]
[395808562,1764726640510,-500.0,0.00011356,2]
[395808564,1764726640526,-500.0,0.00011356,2]
[395808566,1764726640536,-189.297345,0.00011356,2]
[395808568,1764726640545,-575.01554392,0.00011356,2]
[395808570,1764726640556,-703.34,0.00011356,2]
[395808572,1764726640565,-674.6,0.00011356,2]
[395808574,1764726640575,-500.0,0.00011356,2]
[395808576,1764726640584,-500.0,0.00011356,2]
[395808578,1764726640594,-500.0,0.00011356,2]
[395808580,1764726640603,-500.0,0.00011356,2]
[395808582,1764726640612,-536.72,0.00011356,2]
[395808584,1764726640621,-501.03968895,0.00011356,2]
[395808586,1764726640630,-504.98848384,0.00011356,2]
[395808588,1764726640639,-617.38,0.00011356,2]
[395808590,1764726640648,-5880.29,0.00011356,2]
[395808593,1764726640657,-1350.96,0.00011356,2]
[395808596,1764726640666,-500.0,0.00011356,2]
[395808598,1764726640675,-1138.49,0.00011356,2]
[395808600,1764726640684,-500.0,0.00011356,2]
[395808602,1764726640694,-503.05068239,0.00011356,2]
[395808604,1764726640704,-500.0,0.00011356,2]
[395808606,1764726640713,-882.09,0.00011356,2]
[395808608,1764726640723,-500.39283587,0.00011356,2]
[395808610,1764726640732,-599.14,0.00011356,2]
[395808612,1764726640742,-1290.46,0.00011356,2]
[395808614,1764726640751,-500.0,0.00011356,2]
[395808616,1764726640760,-503.60432408,0.00011356,2]
[395808618,1764726640771,-518.38484946,0.00011356,2]
[395808620,1764726640781,-566.76260741,0.00011356,2]
[395808622,1764726640790,-502.48107631,0.00011356,2]
[395808624,1764726640799,-500.0,0.00011356,2]
[395808626,1764726640808,-4926.96,0.00011356,2]
[395808628,1764726640818,-669.89,0.00011356,2]
[395808630,1764726640827,-553.87,0.00011356,2]
[395808632,1764726640836,-503.11056911,0.00011356,2]
[395808634,1764726640845,-3194.05,0.00011356,2]
[395808636,1764726640855,-1110.57,0.00011356,2]
[395808638,1764726640864,-500.0,0.00011356,2]
[395808640,1764726640873,-502.54084539,0.00011356,2]
[395808642,1764726640887,-503.29082246,0.00011356,2]
[395808644,1764726640897,-500.0,0.00011356,2]
[395808646,1764726640906,-509.89391588,0.00011356,2]
[395808648,1764726640915,-500.0,0.00011356,2]
[395808650,1764726640925,-862.63,0.00011356,2]
[395808652,1764726640935,-500.0,0.00011356,2]
[395808654,1764726640944,-1003.98,0.00011356,2]
[395808656,1764726640953,-500.0,0.00011356,2]
[395808658,1764726640963,-500.61489589,0.00011356,2]
[395808660,1764726640972,-501.45810822,0.00011356,2]
[395808662,1764726640982,-502.88267508,0.00011356,2]
[395808664,1764726640991,-151.0,0.00011356,2]
[395808667,1764726641000,-151.0,0.00011356,2]
[395808669,1764726641010,-502.81888264,0.00011356,2]
[395808670,1764726641022,-151.0,0.00011356,2]
[395808672,1764726641032,-151.0,0.00011356,2]
[395808674,1764726641041,-926.35,0.00011356,2]
[395808676,1764726641050,-151.0,0.00011356,2]
[395808678,1764726641059,-338.24326446,0.00011356,2]
[395808680,1764726641068,-151.0,0.00011356,2]
[395808682,1764726641078,-151.0,0.00011356,2]
[395808684,1764726641087,-281.037936,0.00011356,2]
[395808686,1764726641097,-500.0,0.00011356,2]
[395808688,1764726641106,-500.80579081,0.00011356,2]
[395808690,1764726641115,-501.54998617,0.00011356,2]
[395808692,1764726641124,-765.71,0.00011356,2]
[395808694,1764726641133,-1045.59,0.00011356,2]
[395808696,1764726641143,-501.44075129,0.00011356,2]
[395808698,1764726641153,-500.0,0.00011356,2]
[395808700,1764726641163,-500.0,0.00011356,2]
[395808702,1764726641173,-3540.37,0.00011356,2]
[395808704,1764726641182,-500.0,0.00011356,2]
[395808706,1764726641193,-500.90121456,0.00011356,2]
[395808708,1764726641207,-669.77,0.00011356,2]
[395808710,1764726641216,-595.19,0.00011356,2]
[395808712,1764726641226,-500.83492795,0.00011356,2]
[395808714,1764726641236,-500.0,0.00011356,2]
[395808716,1764726641245,-501.91660056,0.00011356,2]
[395808719,1764726641255,-1023.87,0.00011356,2]
[395808721,1764726641266,-667.37,0.00011356,2]
[395808723,1764726641275,-504.44794247,0.00011356,2]
[395808725,1764726641287,-151.0,0.00011356,2]
[395808727,1764726641296,-504.68118541,0.00011356,2]
[395808729,1764726641306,-211.01615425,0.00011356,2]
[395808731,1764726641314,-675.47,0.00011356,2]
[395808733,1764726641323,-505.62100807,0.00011356,2]
[395808735,1764726641332,-501.97944785,0.00011356,2]
[395808737,1764726641343,-230.84782082,0.00011356,2]
[395808739,1764726641354,-330.36208696,0.00011356,2]
[395808741,1764726641363,-864.83,0.00011356,2]
[395808743,1764726641373,-633.8,0.00011356,2]
[395808745,1764726641382,-1236.25,0.00011356,2]
[395808747,1764726641391,-500.0,0.00011356,2]
[395808749,1764726641400,-1269.6,0.00011356,2]
[395808751,1764726641411,-501.3471941,0.00011356,2]
[395808753,1764726641420,-500.0,0.00011356,2]
[395808755,1764726641430,-600.89,0.00011356,2]
[395808757,1764726641440,-151.0,0.00011356,2]
[395808759,1764726641448,-151.0,0.00011356,2]
[395808761,1764726641458,-151.0,0.00011356,2]
[395808763,1764726641467,-502.02031426,0.00011356,2]
[395808765,1764726641477,-151.0,0.00011356,2]
[395808767,1764726641486,-151.0,0.00011356,2]
[395808769,1764726641495,-151.0,0.00011356,2]
[395808771,1764726641504,-501.02400688,0.00011356,2]
[395808773,1764726641514,-3643.3,0.00011356,2]
[395808775,1764726641525,-1541.41,0.00011356,2]
[395808777,1764726641534,-557.19,0.00011356,2]
[395808779,1764726641543,-501.40827395,0.00011356,2]
[395808781,1764726641552,-500.0,0.00011356,2]
[395808783,1764726641562,-500.0,0.00011356,2]
[395808785,1764726641571,-528.47,0.00011356,2]
[395808787,1764726641581,-901.93,0.00011356,2]
[395808789,1764726641590,-500.0,0.00011356,2]
[395808791,1764726641599,-1233.32,0.00011356,2]
[395808793,1764726641608,-500.0,0.00011356,2]
[395808795,1764726641617,-500.0,0.00011356,2]
[395808797,1764726641626,-500.0,0.00011356,2]
[395808799,1764726641636,-500.0,0.00011356,2]
[395808801,1764726641646,-500.67048779,0.00011356,2]
[395808803,1764726641655,-4454.11,0.00011356,2]
[395808805,1764726641665,-500.0,0.00011357,2]
[395808807,1764726641674,-500.0,0.00011357,2]
[395808809,1764726641683,-500.0,0.00011357,2]
[395808811,1764726641692,-151.0,0.00011357,2]
[395808813,1764726641702,-500.0,0.00011357,2]
[395808815,1764726641711,-500.70965568,0.00011357,2]
[395808817,1764726641720,-502.65238388,0.00011357,2]
[395808819,1764726641730,-504.55426911,0.00011357,2]
[395808821,1764726641740,-802.45,0.00011357,2]
[395808823,1764726641754,-886.93,0.00011357,2]
[395808825,1764726641771,-1046.02,0.00011357,2]
[395808827,1764726641780,-1837.17,0.00011357,2]
[395808829,1764726641789,-1213.28,0.00011357,2]
[395808831,1764726641798,-1649.29,0.00011357,2]
[395808833,1764726641808,-560.09,0.00011357,2]
[395808835,1764726641816,-151.0,0.00011357,2]
[395808837,1764726641826,-1488.77,0.00011357,2]
[395808839,1764726641835,-151.0,0.00011357,2]
[395808841,1764726641844,-151.0,0.00011357,2]
[395808843,1764726641854,-500.0,0.00011357,2]
[395808845,1764726641863,-3803.66,0.00011357,2]
[395808847,1764726641872,-2468.92,0.00011357,2]
[395808849,1764726641882,-8767.01,0.00011357,2]
[395808851,1764726641897,-151.0,0.00011357,2]
[395808853,1764726641907,-190.449084,0.00011357,2]
[395808855,1764726641916,-501.22331137,0.00011358,2]
[395808857,1764726641925,-436.99702902,0.00011358,2]
[395808859,1764726641935,-515.24424601,0.00011358,2]
[395808861,1764726641944,-500.0,0.00011358,2]
[395808863,1764726641954,-500.0,0.00011358,2]
[395808865,1764726641963,-502.30343137,0.00011358,2]
[395808867,1764726641973,-500.0,0.00011358,2]
[395808869,1764726641983,-500.0,0.00011358,2]
[395808871,1764726641992,-502.76107028,0.00011358,2]
[395808873,1764726642001,-500.0,0.00011358,2]
[395808875,1764726642010,-500.0,0.00011358,2]
[395808877,1764726642020,-501.30008432,0.00011358,2]
[395808879,1764726642029,-500.53738838,0.00011358,2]
[395808881,1764726642038,-500.47967162,0.00011358,2]
[395808883,1764726642048,-501.49232014,0.00011358,2]
[395808885,1764726642057,-571.3,0.00011358,2]
[395808887,1764726642066,-500.81426194,0.00011358,2]
[395808889,1764726642075,-501.17825269,0.00011358,2]
[395808891,1764726642084,-509.26456269,0.00011358,2]
[395808893,1764726642093,-762.51,0.00011358,2]
[395808895,1764726642103,-502.16671057,0.00011358,2]
[395808897,1764726642112,-500.0,0.00011358,2]
[395808899,1764726642121,-500.0,0.00011358,2]
[395808901,1764726642130,-504.72197926,0.00011358,2]
[395808903,1764726642139,-502.39931168,0.00011358,2]
[395808905,1764726642148,-500.36333227,0.00011358,2]
[395808907,1764726642157,-505.46013306,0.00011358,2]
[395808909,1764726642166,-500.0,0.00011358,2]
[395808911,1764726642175,-500.0,0.00011358,2]
[395808913,1764726642184,-502.95692831,0.00011358,2]
[395808915,1764726642193,-502.09966297,0.00011358,2]
[395808917,1764726642202,-501.42035798,0.00011358,2]
[395808919,1764726642211,-503.7983827,0.00011358,2]
[395808921,1764726642220,-501.43836234,0.00011358,2]
[395808923,1764726642229,-633.21963699,0.00011358,2]
[395808925,1764726642238,-503.57796509,0.00011358,2]
[395808927,1764726642248,-503.15972655,0.00011358,2]
[395808929,1764726642256,-503.5027354,0.00011358,2]
[395808931,1764726642267,-500.0,0.00011358,2]
[395808933,1764726642276,-500.0,0.00011358,2]
[395808935,1764726642285,-503.14052593,0.00011358,2]
[395808937,1764726642294,-500.0,0.00011358,2]
[395808939,1764726642304,-503.56927418,0.00011358,2]
[395808941,1764726642313,-500.0,0.00011358,2]
[395808943,1764726642322,-501.13400191,0.00011358,2]
[395808945,1764726642331,-501.43290137,0.00011358,2]
[395808946,1764726642340,-649.60347013,0.00011358,2]
[395808949,1764726642354,-565.19804969,0.00011358,2]
[395808950,1764726642363,-501.78961561,0.00011358,2]
[395808953,1764726642374,-500.0,0.00011358,2]
[395808954,1764726642383,-502.38640465,0.00011358,2]
[395808956,1764726642392,-502.90123305,0.00011358,2]
[395808958,1764726642401,-501.844179,0.00011358,2]
[395808960,1764726642411,-500.0,0.00011358,2]
[395808962,1764726642420,-500.0,0.00011358,2]
[395808964,1764726642429,-718.05,0.00011358,2]
[395808966,1764726642438,-500.0,0.00011358,2]
[395808968,1764726642448,-502.48573065,0.00011358,2]
[395808970,1764726642457,-502.0102366,0.00011358,2]
[395808972,1764726642467,-502.89271298,0.00011358,2]
[395808974,1764726642476,-500.0,0.00011358,2]
[395808976,1764726642485,-502.52235791,0.00011358,2]
[395808978,1764726642494,-767.68,0.00011358,2]
[395808980,1764726642503,-600.09,0.00011358,2]
[395808982,1764726642512,-502.21654764,0.00011358,2]
[395808984,1764726642521,-500.98356771,0.00011358,2]
[395808986,1764726642531,-500.0,0.00011358,2]
[395808988,1764726642540,-500.0,0.00011358,2]
[395808990,1764726642550,-622.25,0.00011358,2]
[395808992,1764726642559,-501.05966895,0.00011358,2]
[395808994,1764726642570,-513.5,0.00011358,2]
[395808996,1764726642580,-500.0,0.00011358,2]
[395808998,1764726642589,-531.11,0.00011358,2]
[395809000,1764726642598,-500.0,0.00011358,2]
[395809002,1764726642608,-537.85,0.00011358,2]
[395809004,1764726642618,-207.3313777,0.00011358,2]
[395809007,1764726642627,-500.0,0.00011358,2]
[395809009,1764726642637,-500.0,0.00011358,2]
[395809011,1764726642647,-500.0,0.00011358,2]
[395809013,1764726642656,-500.0,0.00011358,2]
[395809015,1764726642666,-500.0,0.00011358,2]
[395809017,1764726642675,-501.78997286,0.00011358,2]
[395809019,1764726642685,-500.0,0.00011358,2]
[395809021,1764726642694,-617.11,0.00011358,2]
[395809023,1764726642704,-503.10327785,0.00011358,2]
[395809025,1764726642713,-841.81,0.00011358,2]
[395809027,1764726642722,-500.0,0.00011358,2]
[395809029,1764726642732,-500.0,0.00011358,2]
[395809031,1764726642742,-500.0,0.00011358,2]
[395809034,1764726642756,-500.0,0.00011358,2]
[395809037,1764726642765,-181.65622103,0.00011358,2]
[395809039,1764726642778,-224.27649218,0.00011358,2]
[395809041,1764726642788,-500.0,0.00011358,2]
[395809044,1764726642799,-501.53018842,0.00011358,2]
[395809045,1764726642809,-501.96803776,0.00011358,2]
[395809048,1764726642819,-500.0,0.00011358,2]
[395809050,1764726642829,-500.99371937,0.00011358,2]
[395809052,1764726642843,-500.0,0.00011358,2]
[395809054,1764726642853,-500.0,0.00011358,2]
[395809056,1764726642864,-501.38755869,0.00011358,2]
[395809058,1764726642873,-826.54,0.00011358,2]
[395809060,1764726642884,-500.0,0.00011358,2]
[395809062,1764726642897,-500.0,0.00011358,2]
[395809064,1764726642907,-641.73389409,0.00011358,2]
[395809066,1764726642916,-500.0,0.00011358,2]
[395809068,1764726642926,-500.0,0.00011358,2]
[395809070,1764726642936,-500.0,0.00011358,2]
[395809071,1764726642945,-500.0,0.00011358,2]
[395809073,1764726642954,-500.64149134,0.00011358,2]
[395809075,1764726642963,-500.42029383,0.00011358,2]
[395809077,1764726642974,-500.0,0.00011358,2]
[395809080,1764726642985,-502.42583527,0.00011358,2]
[395809081,1764726642994,-501.15838583,0.00011358,2]
[395809083,1764726643003,-625.2,0.00011358,2]
[395809085,1764726643012,-501.08251199,0.00011358,2]
[395809087,1764726643026,-1190.43,0.00011358,2]
[395809089,1764726643036,-501.69647023,0.00011358,2]
[395809091,1764726643045,-294.35130146,0.00011358,2]
[395809093,1764726643055,-501.47035872,0.00011358,2]
[395809095,1764726643064,-815.34,0.00011358,2]
[395809097,1764726643074,-500.0,0.00011358,2]
[395809099,1764726643082,-500.0,0.00011358,2]
[395809101,1764726643092,-929.85,0.00011358,2]
[395809103,1764726643102,-605.41,0.00011358,2]
[395809105,1764726643112,-500.0,0.00011358,2]
[395809107,1764726643122,-500.62062927,0.00011358,2]
[395809109,1764726643131,-642.0911011,0.00011358,2]
[395809111,1764726643140,-500.0,0.00011358,2]
[395809113,1764726643149,-500.0,0.00011358,2]
[395809115,1764726643160,-500.0,0.00011358,2]
[395809117,1764726643169,-500.0,0.00011358,2]
[395809119,1764726643178,-500.66362493,0.00011358,2]
[395809121,1764726643188,-500.0,0.00011358,2]
[395809123,1764726643197,-500.67348168,0.00011358,2]
[395809125,1764726643205,-502.72057762,0.00011358,2]
[395809127,1764726643215,-500.0,0.00011358,2]
[395809129,1764726643225,-151.0,0.00011358,2]
[395809131,1764726643234,-504.06259698,0.00011358,2]
[395809133,1764726643244,-500.0,0.00011358,2]
[395809135,1764726643254,-500.0,0.00011358,2]
[395809137,1764726643263,-500.0,0.00011358,2]
[395809139,1764726643276,-500.0,0.00011358,2]
[395809141,1764726643285,-501.68985363,0.00011358,2]
[395809143,1764726643296,-500.0,0.00011358,2]
[395809145,1764726643306,-500.0,0.00011358,2]
[395809147,1764726643315,-500.0,0.00011358,2]
[395809149,1764726643324,-500.0,0.00011358,2]
[395809151,1764726643334,-500.0,0.00011358,2]
[395809153,1764726643343,-500.0,0.00011358,2]
[395809155,1764726643354,-500.0,0.00011358,2]
[395809157,1764726643364,-571.02,0.00011358,2]
[395809159,1764726643373,-500.0,0.00011358,2]
[395809161,1764726643382,-500.0,0.00011358,2]
[395809163,1764726643391,-500.0,0.00011358,2]
[395809165,1764726643400,-500.0,0.00011358,2]
[395809167,1764726643410,-500.0,0.00011358,2]
[395809169,1764726643419,-500.0,0.00011358,2]
[395809171,1764726643428,-1438.0,0.00011358,2]
[395809173,1764726643438,-500.0,0.00011358,2]
[395809175,1764726643447,-562.19,0.00011358,2]
[395809177,1764726643462,-504.53064879,0.00011358,2]
[395809179,1764726643475,-653.84,0.00011358,2]
[395809181,1764726643485,-500.0,0.00011358,2]
[395809183,1764726643494,-500.0,0.00011358,2]
[395809185,1764726643503,-500.0,0.00011358,2]
[395809187,1764726643513,-500.0,0.00011358,2]
[395809189,1764726643524,-500.0,0.00011358,2]
[395809191,1764726643533,-933.24,0.00011358,2]
[395809193,1764726643543,-500.0,0.00011358,2]
[395809195,1764726643551,-500.0,0.00011358,2]
[395809197,1764726643561,-722.15,0.00011358,2]
[395809198,1764726643570,-598.02,0.00011358,2]
[395809200,1764726643579,-500.0,0.00011358,2]
[395809202,1764726643589,-688.1,0.00011358,2]
[395809204,1764726643598,-500.0,0.00011358,2]
[395809206,1764726643607,-652.57,0.00011358,2]
[395809208,1764726643617,-500.0,0.00011358,2]
[395809210,1764726643626,-500.0,0.00011358,2]
[395809212,1764726643635,-500.0,0.00011358,2]
[395809218,1764726643798,-500.0,0.00011358,2]
[395809219,1764726643808,-500.0,0.00011358,2]
[395809220,1764726643818,-500.0,0.00011358,2]
[395809221,1764726643828,-506.94403977,0.00011358,2]
[395809222,1764726643838,-1067.33,0.00011358,2]
[395809223,1764726643848,-500.0,0.00011358,2]
[395809224,1764726643858,-500.0,0.00011358,2]
[395809225,1764726643867,-504.79957395,0.00011358,2]
[395809226,1764726643878,-422.53252677,0.00011358,2]
[395809227,1764726643890,-500.57089667,0.00011358,2]
[395809228,1764726643902,-500.0,0.00011358,2]
[395809230,1764726643912,-443.97,0.00011358,2]
[395809231,1764726643923,-500.0,0.00011358,2]
[395809233,1764726643932,-563.62970767,0.00011358,2]
[395809235,1764726643941,-500.0,0.00011358,2]
[395809237,1764726643951,-612.78,0.00011358,2]
[395809239,1764726643960,-929.96,0.00011358,2]
[395809240,1764726643971,-772.87,0.00011358,2]
[395809243,1764726643981,-608.63,0.00011358,2]
[395809245,1764726643991,-768.02467738,0.00011358,2]
[395809248,1764726644011,-176.52532262,0.00011358,2]
[395809249,1764726644022,-537.19,0.00011358,2]
[395809252,1764726644032,-502.65180743,0.00011358,2]
[395809254,1764726644042,-500.0,0.00011358,2]
[395809256,1764726644051,-151.0,0.00011358,2]
[395809258,1764726644061,-151.0,0.00011358,2]
[395809259,1764726644070,-151.0,0.00011358,2]
[395809262,1764726644081,-151.0,0.00011358,2]
[395809263,1764726644091,-151.0,0.00011358,2]
[395809265,1764726644100,-151.0,0.00011358,2]
[395809267,1764726644110,-2099.57,0.00011358,2]
[395809269,1764726644121,-500.0,0.00011358,2]
[395809271,1764726644132,-706.95,0.00011358,2]
[395809273,1764726644141,-500.0,0.00011358,2]
[395809275,1764726644151,-500.0,0.00011358,2]
[395809277,1764726644161,-500.0,0.00011358,2]
[395809279,1764726644171,-500.47126686,0.00011358,2]
[395809281,1764726644182,-502.45636305,0.00011358,2]
[395809283,1764726644192,-500.0,0.00011358,2]
[395809285,1764726644201,-563.92,0.00011358,2]
[395809287,1764726644211,-500.0,0.00011358,2]
[395809289,1764726644221,-151.0,0.00011358,2]
[395809291,1764726644230,-503.65524744,0.00011358,2]
[395809293,1764726644240,-552.14,0.00011358,2]
[395809295,1764726644250,-500.0,0.00011358,2]
[395809297,1764726644259,-955.24,0.00011358,2]
[395809300,1764726644269,-501.17259398,0.00011359,2]
[395809301,1764726644280,-523.61552812,0.00011359,2]
[395809304,1764726644291,-500.0,0.00011359,2]
[395809306,1764726644300,-500.0,0.00011359,2]
[395809308,1764726644310,-500.0,0.00011359,2]
[395809310,1764726644320,-500.0,0.00011359,2]
[395809312,1764726644329,-500.0,0.00011359,2]
[395809314,1764726644338,-500.0,0.00011359,2]
[395809316,1764726644348,-501.75450713,0.00011359,2]
[395809318,1764726644357,-591.7591814,0.00011359,2]
[395809320,1764726644366,-503.72342749,0.00011359,2]
[395809322,1764726644376,-501.12580924,0.00011359,2]
[395809324,1764726644386,-272.17043978,0.00011359,2]
[395809326,1764726644395,-505.18449293,0.00011359,2]
[395809328,1764726644404,-500.0,0.00011359,2]
[395809330,1764726644414,-500.96565874,0.00011359,2]
[395809332,1764726644424,-366.90056436,0.00011359,2]
[395809334,1764726644436,-133.09943564,0.00011359,2]
[395809336,1764726644446,-502.39944672,0.00011359,2]
[395809338,1764726644455,-503.06941196,0.00011359,2]
[395809340,1764726644464,-514.85176892,0.00011359,2]
[395809342,1764726644473,-500.72075207,0.00011359,2]
[395809344,1764726644482,-529.58,0.00011359,2]
[395809346,1764726644491,-500.0,0.00011359,2]
[395809348,1764726644501,-508.82,0.00011359,2]
[395809350,1764726644510,-548.7,0.00011359,2]
[395809352,1764726644522,-507.19,0.00011359,2]
[395809354,1764726644531,-1543.96,0.00011359,2]
[395809356,1764726644541,-531.04,0.00011359,2]
[395809358,1764726644551,-533.79,0.00011359,2]
[395809360,1764726644560,-500.0,0.00011359,2]
[395809362,1764726644571,-548.88,0.00011359,2]
[395809364,1764726644581,-500.0,0.00011359,2]
[395809366,1764726644590,-500.0,0.00011359,2]
[395809368,1764726644599,-500.0,0.00011359,2]
[395809370,1764726644609,-500.0,0.00011359,2]
[395809372,1764726644618,-500.0,0.00011359,2]
[395809374,1764726644628,-500.0,0.00011359,2]
[395809376,1764726644637,-500.0,0.00011359,2]
[395809378,1764726644647,-621.98,0.00011359,2]
[395809380,1764726644656,-656.98,0.00011359,2]
[395809382,1764726644666,-500.73515602,0.00011359,2]
[395809384,1764726644676,-502.47882895,0.00011359,2]
[395809386,1764726644686,-502.28669105,0.00011359,2]
[395809388,1764726644696,-500.8833822,0.00011359,2]
[395809390,1764726644704,-500.0,0.00011359,2]
[395809392,1764726644714,-500.0,0.00011359,2]
[395809394,1764726644723,-501.33898301,0.00011359,2]
[395809396,1764726644732,-500.0,0.00011359,2]
[395809397,1764726644742,-500.0,0.00011359,2]
[395809399,1764726644752,-700.0,0.00011359,2]
[395809402,1764726644761,-500.0,0.00011359,2]
[395809404,1764726644771,-685.06,0.00011359,2]
[395809405,1764726644780,-1332.63,0.00011359,2]
[395809408,1764726644790,-500.0,0.00011359,2]
[395809411,1764726644799,-673.55,0.00011359,2]
[395809414,1764726644809,-500.0,0.00011359,2]
[395809417,1764726644818,-500.0,0.00011359,2]
[395809419,1764726644827,-782.14,0.00011359,2]
[395809421,1764726644836,-502.65077275,0.00011359,2]
[395809423,1764726644846,-500.0,0.00011359,2]
[395809425,1764726644855,-500.0,0.00011359,2]
[395809427,1764726644865,-500.0,0.00011359,2]
[395809428,1764726644875,-500.0,0.00011359,2]
[395809430,1764726644889,-500.98137204,0.00011359,2]
[395809432,1764726644898,-500.0,0.00011359,2]
[395809434,1764726644907,-1863.19,0.00011359,2]
[395809436,1764726644917,-500.0,0.00011359,2]
[395809438,1764726644928,-500.0,0.00011359,2]
[395809440,1764726644937,-711.51,0.00011359,2]
[395809442,1764726644947,-500.0,0.00011359,2]
[395809445,1764726644958,-500.0,0.00011359,2]
[395809447,1764726644969,-500.0,0.00011359,2]
[395809449,1764726644978,-543.68,0.00011359,2]
[395809451,1764726644988,-500.66171875,0.00011359,2]
[395809453,1764726644997,-515.54887766,0.00011359,2]
[395809455,1764726645010,-504.9595307,0.00011359,2]
[395809456,1764726645022,-500.0,0.00011359,2]
[395809458,1764726645032,-502.27755991,0.00011359,2]
[395809460,1764726645041,-500.0,0.00011359,2]
[395809463,1764726645052,-1787.0,0.00011359,2]
[395809465,1764726645061,-500.0,0.00011359,2]
[395809467,1764726645070,-500.0,0.00011359,2]
[395809469,1764726645080,-974.32,0.00011359,2]
[395809470,1764726645090,-500.0,0.00011359,2]
[395809473,1764726645100,-545.01,0.00011359,2]
[395809475,1764726645110,-17072.49974647,0.00011361,2]
[395809477,1764726645120,-551.94648157,0.00011373,2]
[395809479,1764726645130,-151.0,0.000114,2]
[395809481,1764726645139,-151.0,0.000114,2]
[395809483,1764726645148,-151.0,0.000114,2]
[395809485,1764726645157,-551.94648157,0.00011431,2]
[395809487,1764726645167,-551.94648157,0.00011488,2]
[395809489,1764726645176,-151.02542882,0.00011493,2]
[395809491,1764726645185,-500.0,0.00011493,2]
[395809493,1764726645195,-500.99992525,0.00011493,2]
[395809495,1764726645205,-500.0,0.00011494,2]
[395809497,1764726645215,-151.94104282,0.00011494,2]
[395809499,1764726645225,-153.71411251,0.00011495,2]
[395809501,1764726645235,-151.0,0.000115,2]
[395809503,1764726645247,-151.0,0.000115,2]
[395809505,1764726645257,-151.0,0.000115,2]
[395809507,1764726645267,-151.0,0.000115,2]
[395809509,1764726645277,-300.0,0.00011588,2]
[395809510,1764726645287,-300.0,0.00011588,2]
[395809513,1764726645298,-300.0,0.00011588,2]
[395809515,1764726645308,-300.0,0.00011588,2]
[395809517,1764726645318,-300.0,0.00011588,2]
[395809519,1764726645327,-300.0,0.00011588,2]
[395809521,1764726645337,-300.0,0.00011588,2]
[395809523,1764726645346,-300.0,0.00011588,2]
[395809524,1764726645356,-300.0,0.00011588,2]
[395809526,1764726645365,-300.0,0.00011588,2]
[395809528,1764726645374,-300.0,0.00011588,2]
[395809531,1764726645384,-300.0,0.00011588,2]
[395809533,1764726645394,-300.0,0.00011588,2]
[395809534,1764726645404,-300.0,0.00011588,2]
[395809536,1764726645414,-300.0,0.00011588,2]
[395809539,1764726645426,-397.0957897,0.000116,2]